[Event "MCR rapid mládeže 2023 U16"]
[Site "Harachov, Czech Republic"]
[Date "2023.09.09"]
[Round "6.35"]
[White "Vanacek, Pavel"]
[Black "Zelenka, Tomas"]
[Result "0-1"]
[TimeControl "20min+5s/move"]
[WhiteElo "1169"]
[BlackElo "1457"]

1. e4 {[%clk 00:20:07]} {[%emt 00:37:38]} c5 {[%clk 00:20:07]} {[%emt
00:00:06]} 2. Nf3 {[%clk 00:20:03]} {[%emt 00:00:08]} Nc6 {[%clk 00:20:09]}
{[%emt 00:00:03]} 3. Nc3 {[%clk 00:20:00]} {[%emt 00:00:09]} g6 {[%clk
00:20:07]} {[%emt 00:00:06]} 4. Bc4 {[%clk 00:19:48]} {[%emt 00:00:18]} Bg7
{[%clk 00:20:05]} {[%emt 00:00:06]} 5. d3 {[%clk 00:19:38]} {[%emt 00:00:15]}
Nf6 {[%clk 00:20:03]} {[%emt 00:00:07]} 6. Bg5 {[%clk 00:19:11]} {[%emt
00:00:32]} O-O {[%clk 00:20:00]} {[%emt 00:00:09]} 7. O-O {[%clk 00:18:39]}
{[%emt 00:00:36]} d6 {[%clk 00:19:53]} {[%emt 00:00:12]} 8. Re1 {[%clk
00:18:03]} {[%emt 00:00:41]} Bg4 {[%clk 00:19:41]} {[%emt 00:00:18]} 9. h3
{[%clk 00:17:51]} {[%emt 00:00:15]} Bxf3 {[%clk 00:19:38]} {[%emt 00:00:08]} 10.
Qxf3 {[%clk 00:17:50]} {[%emt 00:00:08]} Nd4 {[%clk 00:19:36]} {[%emt
00:00:06]} 11. Qd1 {[%clk 00:17:28]} {[%emt 00:00:25]} Qb6 {[%clk 00:19:25]}
{[%emt 00:00:13]} 12. b3 {[%clk 00:16:00]} {[%emt 00:01:03]} Qb4 13. Nd5 Nxd5
14. exd5 {[%clk 00:15:46]} Nf5 {[%clk 00:18:30]} {[%emt 00:00:18]} 15. g4
{[%clk 00:14:33]} Bxa1 {[%clk 00:18:18]} {[%emt 00:01:37]} 16. Qxa1 {[%clk
00:14:16]} Nd4 {[%clk 00:18:14]} {[%emt 00:00:30]} 17. c3 {[%clk 00:14:03]}
Nf3+ {[%clk 00:17:53]} {[%emt 00:00:44]} 18. Kg2 {[%clk 00:12:02]} Nxe1+ {[%clk
00:17:50]} {[%emt 00:02:15]} 19. Qxe1 {[%clk 00:12:03]} Qb6 {[%clk 00:17:31]}
{[%emt 00:00:26]} 20. b4 {[%clk 00:11:35]} cxb4 {[%clk 00:17:23]} {[%emt
00:00:48]} 21. cxb4 {[%clk 00:11:37]} Qd4 {[%clk 00:17:11]} {[%emt 00:00:13]}
22. Be3 {[%clk 00:10:25]} Qg7 {[%clk 00:17:08]} {[%emt 00:01:28]} 23. Qd2
{[%clk 00:09:48]} Rfe8 {[%clk 00:16:42]} {[%emt 00:01:15]} 24. Bh6 {[%clk
00:09:18]} Qf6 {[%clk 00:16:34]} {[%emt 00:00:46]} 25. Bg5 {[%clk 00:08:56]}
Qh8 {[%clk 00:16:28]} {[%emt 00:00:41]} 26. Qc1 {[%clk 00:08:28]} Rac8 {[%clk
00:16:14]} {[%emt 00:00:50]} 27. Bd2 {[%clk 00:08:26]} b5 {[%clk 00:16:12]}
{[%emt 00:00:17]} 28. Bc3 {[%clk 00:08:08]} f6 {[%clk 00:15:39]} {[%emt
00:01:00]} 29. Bxb5 {[%clk 00:07:56]} Rf8 {[%clk 00:15:28]} {[%emt 00:00:32]}
30. Bd7 {[%clk 00:06:57]} Rc7 {[%clk 00:15:17]} {[%emt 00:01:18]} 31. Be6+
{[%clk 00:06:54]} {[%emt 00:00:10]} Rf7 {[%clk 00:14:09]} {[%emt 00:01:14]} 32.
Qb2 {[%clk 00:05:46]} {[%emt 00:01:14]} Kf8 {[%clk 00:13:34]} {[%emt 00:00:39]}
33. Bxf7 {[%clk 00:04:48]} Kxf7 {[%clk 00:12:54]} {[%emt 00:01:49]} 34. a4
{[%clk 00:04:17]} Qc8 {[%clk 00:12:34]} {[%emt 00:00:59]} 35. Be1 {[%clk
00:04:01]} Qb7 {[%clk 00:12:27]} {[%emt 00:00:34]} 36. Qb3 {[%clk 00:03:55]} a5
{[%clk 00:12:29]} {[%emt 00:00:16]} 37. b5 {[%clk 00:03:50]} Qb6 {[%clk
00:12:15]} {[%emt 00:00:26]} 38. f4 {[%clk 00:03:21]} Ke8 {[%clk 00:11:04]}
{[%emt 00:01:49]} 39. h4 {[%clk 00:03:15]} Qe3 {[%clk 00:10:21]} {[%emt
00:00:59]} 40. Bxa5 {[%clk 00:02:06]} Qe2+ {[%clk 00:10:22]} {[%emt 00:01:21]}
41. Kg1 {[%clk 00:01:53]} Rc1+ {[%clk 00:10:23]} {[%emt 00:00:22]} 42. Be1
{[%clk 00:01:46]} Rxe1# {[%clk 00:10:23]} 0-1

[Event "MCR rapid mládeže 2023 U16"]
[Site "Harachov, Czech Republic"]
[Date "2023.09.09"]
[Round "6.36"]
[White "Zika, Miroslav"]
[Black "Krivka, Lukas"]
[Result "1-0"]
[TimeControl "20min+5s/move"]
[WhiteElo "1199"]
[BlackElo "1104"]

1. c4 {[%clk 00:20:08]} {[%emt 00:00:01]} e6 {[%clk 00:20:02]} {[%emt
00:00:09]} 2. Nc3 {[%clk 00:20:05]} {[%emt 00:00:07]} Nf6 {[%clk 00:19:54]}
{[%emt 00:00:13]} 3. Nf3 {[%clk 00:20:00]} {[%emt 00:00:10]} d5 {[%clk
00:19:36]} {[%emt 00:00:23]} 4. cxd5 {[%clk 00:19:52]} {[%emt 00:00:13]} exd5
{[%clk 00:18:54]} {[%emt 00:00:47]} 5. g3 {[%clk 00:19:52]} {[%emt 00:00:05]}
d4 {[%clk 00:18:14]} {[%emt 00:00:46]} 6. Nb5 {[%clk 00:19:22]} {[%emt
00:00:34]} Bc5 {[%clk 00:17:42]} {[%emt 00:00:37]} 7. b3 {[%clk 00:19:05]}
{[%emt 00:00:22]} a6 {[%clk 00:17:20]} {[%emt 00:00:26]} 8. Na3 {[%clk
00:19:09]} Nc6 {[%clk 00:16:39]} {[%emt 00:00:47]} 9. Bg2 {[%clk 00:18:55]}
{[%emt 00:00:19]} O-O {[%clk 00:16:18]} {[%emt 00:00:26]} 10. Bb2 {[%clk
00:18:45]} {[%emt 00:00:16]} d3 {[%clk 00:14:48]} {[%emt 00:01:36]} 11. O-O
{[%clk 00:18:32]} {[%emt 00:00:17]} dxe2 {[%clk 00:13:46]} {[%emt 00:01:07]} 12.
Qxe2 {[%clk 00:18:33]} {[%emt 00:00:03]} Re8 {[%clk 00:13:32]} {[%emt
00:00:20]} 13. Qc4 {[%clk 00:18:34]} {[%emt 00:00:04]} Qd6 {[%clk 00:12:28]}
{[%emt 00:01:09]} 14. Nc2 {[%clk 00:18:26]} {[%emt 00:00:13]} Be6 {[%clk
00:12:11]} {[%emt 00:00:22]} 15. Qh4 {[%clk 00:18:12]} {[%emt 00:00:19]} Bf5
{[%clk 00:08:35]} {[%emt 00:03:41]} 16. Ne3 {[%clk 00:18:05]} {[%emt 00:00:11]}
Bxe3 {[%clk 00:07:32]} {[%emt 00:01:10]} 17. dxe3 {[%clk 00:18:03]} {[%emt
00:00:05]} Re6 {[%clk 00:07:06]} {[%emt 00:00:33]} 18. Ng5 {[%clk 00:17:39]}
{[%emt 00:00:28]} Ree8 {[%clk 00:05:32]} {[%emt 00:01:39]} 19. Rad1 {[%clk
00:17:24]} {[%emt 00:00:20]} Qe7 {[%clk 00:05:24]} {[%emt 00:00:13]} 20. Nf3
{[%clk 00:16:49]} {[%emt 00:00:40]} Ne4 {[%clk 00:04:24]} {[%emt 00:01:05]} 21.
Qxe7 {[%clk 00:16:32]} {[%emt 00:00:22]} Nxe7 {[%clk 00:04:11]} {[%emt
00:00:18]} 22. Nh4 {[%clk 00:16:29]} {[%emt 00:00:07]} Nd6 {[%clk 00:04:02]}
{[%emt 00:00:14]} 23. Nxf5 {[%clk 00:16:22]} {[%emt 00:00:12]} Nexf5 {[%clk
00:04:05]} {[%emt 00:00:02]} 24. Rc1 {[%clk 00:16:11]} {[%emt 00:00:16]} c6
{[%clk 00:03:42]} {[%emt 00:00:28]} 25. Rfd1 {[%clk 00:16:01]} {[%emt
00:00:15]} Rad8 {[%clk 00:03:40]} {[%emt 00:00:08]} 26. a4 {[%clk 00:15:45]}
{[%emt 00:00:21]} f6 {[%clk 00:02:46]} {[%emt 00:00:59]} 27. Rc2 {[%clk
00:15:13]} {[%emt 00:00:37]} Nf7 {[%clk 00:02:26]} {[%emt 00:00:25]} 28. Rcd2
{[%clk 00:14:59]} {[%emt 00:00:11]} Kf8 {[%clk 00:02:34]} {[%emt 00:00:14]} 29.
Ba3+ {[%clk 00:14:49]} {[%emt 00:00:16]} Kg8 {[%clk 00:02:22]} {[%emt
00:00:16]} 30. Bh3 {[%clk 00:14:44]} {[%emt 00:00:10]} N5d6 {[%clk 00:01:56]}
{[%emt 00:00:32]} 31. Bf1 {[%clk 00:14:28]} {[%emt 00:00:20]} Ne4 {[%clk
00:01:44]} {[%emt 00:00:17]} 32. Rd4 {[%clk 00:14:08]} {[%emt 00:00:25]} Ned6
{[%clk 00:00:52]} {[%emt 00:00:57]} 33. Bc4 {[%clk 00:13:45]} {[%emt 00:00:28]}
Nxc4 {[%emt 00:00:13]} 34. bxc4 {[%clk 00:13:40]} {[%emt 00:00:07]} Rxd4 {[%clk
00:00:46]} {[%emt 00:00:06]} 35. Rxd4 {[%clk 00:13:37]} {[%emt 00:00:08]} Rd8
{[%clk 00:00:50]} {[%emt 00:00:01]} 36. Kg2 {[%clk 00:13:28]} {[%emt 00:00:14]}
Rxd4 {[%clk 00:00:23]} {[%emt 00:00:32]} 37. exd4 {[%clk 00:13:32]} {[%emt
00:00:01]} b5 {[%clk 00:00:09]} {[%emt 00:00:19]} 38. axb5 {[%clk 00:13:25]}
{[%emt 00:00:11]} axb5 {[%clk 00:00:14]} {[%emt 00:00:01]} 39. cxb5 {[%clk
00:13:29]} {[%emt 00:00:02]} cxb5 {[%clk 00:00:18]} {[%emt 00:00:01]} 40. Kf3
{[%clk 00:13:29]} {[%emt 00:00:04]} Ng5+ {[%clk 00:00:19]} {[%emt 00:00:04]} 41.
Ke3 {[%clk 00:13:30]} {[%emt 00:00:04]} Kf7 {[%clk 00:00:18]} {[%emt 00:00:07]}
42. h4 {[%clk 00:13:27]} {[%emt 00:00:07]} Ne6 {[%clk 00:00:21]} {[%emt
00:00:02]} 43. d5 {[%clk 00:13:20]} {[%emt 00:00:12]} Nd8 {[%clk 00:00:12]}
{[%emt 00:00:14]} 44. Kd4 {[%clk 00:13:22]} {[%emt 00:00:02]} Nb7 {[%clk
00:00:14]} {[%emt 00:00:04]} 45. f4 {[%clk 00:13:11]} {[%emt 00:00:16]} Ke8
{[%clk 00:00:15]} {[%emt 00:00:04]} 46. d6 {[%clk 00:13:09]} {[%emt 00:00:07]}
Kd7 {[%clk 00:00:12]} {[%emt 00:00:08]} 47. Kd5 {[%clk 00:13:12]} {[%emt
00:00:02]} g6 {[%emt 00:00:13]} 48. g4 {[%clk 00:12:59]} {[%emt 00:00:16]} h5
{[%clk 00:00:06]} {[%emt 00:00:05]} 49. g5 {[%clk 00:12:47]} {[%emt 00:00:16]}
fxg5 {[%clk 00:00:06]} {[%emt 00:00:06]} 50. fxg5 {[%clk 00:12:48]} {[%emt
00:00:04]} Nd8 {[%clk 00:00:09]} {[%emt 00:00:03]} 51. Bb4 {[%clk 00:12:44]}
{[%emt 00:00:09]} Nb7 {[%clk 00:00:09]} {[%emt 00:00:05]} 52. Ke5 {[%clk
00:12:35]} {[%emt 00:00:13]} Nd8 {[%clk 00:00:07]} {[%emt 00:00:07]} 53. Kf6
{[%clk 00:12:31]} {[%emt 00:00:08]} Nb7 {[%clk 00:00:12]} 54. Ke5 {[%clk
00:12:29]} {[%emt 00:00:09]} Nd8 {[%clk 00:00:08]} {[%emt 00:00:08]} 55. Kf6
{[%clk 00:12:19]} {[%emt 00:00:16]} Nb7 {[%clk 00:00:07]} {[%emt 00:00:06]} 56.
Kxg6 {[%clk 00:12:20]} {[%emt 00:00:02]} Nxd6 {[%clk 00:00:11]} {[%emt
00:00:02]} 57. Bxd6 {[%clk 00:12:23]} {[%emt 00:00:01]} Kxd6 {[%clk 00:00:16]}
{[%emt 00:00:01]} 58. Kh7 {[%clk 00:12:27]} {[%emt 00:00:02]} b4 {[%clk
00:00:20]} {[%emt 00:00:01]} 59. g6 {[%clk 00:12:31]} {[%emt 00:00:01]} b3
{[%clk 00:00:13]} {[%emt 00:00:11]} 60. g7 {[%clk 00:12:33]} {[%emt 00:00:03]}
b2 {[%clk 00:00:17]} {[%emt 00:00:01]} 61. g8=Q {[%clk 00:12:34]} {[%emt
00:00:04]} b1=Q+ {[%clk 00:00:20]} {[%emt 00:00:02]} 62. Kh6 {[%clk 00:12:21]}
{[%emt 00:00:18]} Qb5 {[%clk 00:00:06]} {[%emt 00:00:20]} 63. Qg6+ {[%clk
00:12:20]} {[%emt 00:00:05]} Kd7 {[%clk 00:00:07]} {[%emt 00:00:03]} 64. Qf7+
{[%clk 00:12:13]} {[%emt 00:00:13]} Kd6 {[%clk 00:00:07]} {[%emt 00:00:05]} 65.
Qf8+ {[%clk 00:11:59]} {[%emt 00:00:19]} Kd7 {[%clk 00:00:06]} {[%emt
00:00:05]} 66. Qg7+ {[%clk 00:11:58]} {[%emt 00:00:06]} Ke6 {[%clk 00:00:06]}
{[%emt 00:00:06]} 67. Qg5 {[%clk 00:11:30]} {[%emt 00:00:32]} Qxg5 {[%clk
00:00:07]} {[%emt 00:00:04]} 68. hxg5 {[%clk 00:11:33]} {[%emt 00:00:02]} Kf7
{[%clk 00:00:11]} 69. Kh7 {[%clk 00:11:33]} {[%emt 00:00:06]} h4 {[%clk
00:00:06]} {[%emt 00:00:11]} 70. g6+ {[%clk 00:11:36]} {[%emt 00:00:03]} Kf6
{[%clk 00:00:10]} {[%emt 00:00:01]} 71. g7 {[%clk 00:11:40]} {[%emt 00:00:01]}
h3 {[%clk 00:00:14]} 72. g8=Q {[%clk 00:11:42]} {[%emt 00:00:03]} h2 {[%clk
00:00:17]} {[%emt 00:00:03]} 73. Qg2 {[%clk 00:11:45]} {[%emt 00:00:01]} 1-0

[Event "MCR rapid mládeže 2023 U16"]
[Site "Harachov, Czech Republic"]
[Date "2023.09.09"]
[Round "6.37"]
[White "Martikanova, Amalie"]
[Black "Tykalova, Barbora"]
[Result "0-1"]
[TimeControl "20min+5s/move"]
[WhiteElo "1107"]
[BlackElo "1121"]

1. e4 {[%clk 00:20:08]} {[%emt 00:00:01]} e5 {[%clk 00:20:05]} {[%emt
00:00:05]} 2. f4 {[%clk 00:20:11]} {[%emt 00:00:02]} Nc6 {[%clk 00:19:59]}
{[%emt 00:00:11]} 3. Nf3 {[%clk 00:20:10]} {[%emt 00:00:06]} d5 {[%clk
00:19:37]} {[%emt 00:00:26]} 4. exd5 {[%clk 00:20:03]} {[%emt 00:00:13]} Qxd5
{[%clk 00:19:35]} {[%emt 00:00:13]} 5. Nc3 {[%clk 00:20:03]} {[%emt 00:00:09]}
Qc5 {[%clk 00:19:14]} {[%emt 00:00:23]} 6. fxe5 {[%clk 00:19:37]} {[%emt
00:00:32]} Nxe5 {[%clk 00:19:08]} {[%emt 00:00:11]} 7. Qe2 {[%clk 00:19:33]}
{[%emt 00:00:09]} Bd6 {[%clk 00:17:58]} {[%emt 00:01:16]} 8. d4 {[%clk
00:19:28]} {[%emt 00:00:11]} Qa5 {[%clk 00:17:12]} {[%emt 00:00:49]} 9. Nxe5
{[%clk 00:19:03]} {[%emt 00:00:30]} Bxe5 {[%clk 00:16:55]} {[%emt 00:00:22]} 10.
dxe5 {[%clk 00:18:52]} {[%emt 00:00:17]} Be6 {[%clk 00:16:40]} {[%emt
00:00:19]} 11. Bd2 {[%clk 00:18:44]} {[%emt 00:00:13]} O-O-O {[%clk 00:16:23]}
{[%emt 00:00:23]} 12. Nb5 {[%clk 00:17:37]} {[%emt 00:01:08]} Qa6 {[%clk
00:14:59]} {[%emt 00:01:29]} 13. Qe3 {[%clk 00:16:58]} {[%emt 00:00:45]} Qb6
{[%clk 00:14:25]} {[%emt 00:00:42]} 14. Nxa7+ {[%clk 00:16:41]} {[%emt
00:00:23]} Kb8 {[%clk 00:14:19]} {[%emt 00:00:10]} 15. Qxb6 {[%clk 00:16:18]}
{[%emt 00:00:27]} cxb6 {[%clk 00:14:13]} {[%emt 00:00:12]} 16. Nb5 {[%clk
00:16:18]} {[%emt 00:00:05]} Ne7 {[%clk 00:13:20]} {[%emt 00:00:57]} 17. Nd6
{[%clk 00:15:17]} {[%emt 00:01:07]} Nd5 {[%clk 00:12:29]} {[%emt 00:00:55]} 18.
O-O-O {[%clk 00:14:40]} {[%emt 00:00:42]} f6 {[%clk 00:12:23]} {[%emt
00:00:11]} 19. Bc4 {[%clk 00:13:49]} {[%emt 00:00:57]} fxe5 {[%clk 00:12:01]}
{[%emt 00:00:26]} 20. Bb4 {[%clk 00:13:40]} {[%emt 00:00:14]} Nxb4 {[%clk
00:09:54]} {[%emt 00:02:13]} 21. Bxe6 {[%clk 00:13:37]} {[%emt 00:00:07]} Rhf8
{[%clk 00:08:50]} {[%emt 00:01:07]} 22. Nf7 {[%clk 00:12:36]} {[%emt 00:01:04]}
Rde8 {[%clk 00:08:23]} {[%emt 00:00:32]} 23. Bb3 {[%clk 00:12:06]} {[%emt
00:00:39]} Rc8 {[%clk 00:06:43]} {[%emt 00:01:45]} 24. Nxe5 {[%clk 00:11:27]}
{[%emt 00:00:45]} Rf2 {[%clk 00:06:00]} {[%emt 00:00:48]} 25. Nc4 {[%clk
00:10:37]} {[%emt 00:00:49]} b5 {[%clk 00:05:37]} {[%emt 00:00:34]} 26. Nd2
{[%clk 00:10:23]} {[%emt 00:00:18]} Rf6 {[%clk 00:04:35]} {[%emt 00:01:04]} 27.
a3 {[%clk 00:10:01]} {[%emt 00:00:31]} Nd3+ {[%clk 00:04:27]} {[%emt 00:00:12]}
28. Kb1 {[%clk 00:09:27]} {[%emt 00:00:39]} Nf2 {[%clk 00:04:17]} {[%emt
00:00:15]} 29. Rhe1 {[%clk 00:07:28]} {[%emt 00:02:01]} Nxd1 {[%clk 00:04:20]}
{[%emt 00:00:06]} 30. Rxd1 {[%clk 00:07:32]} {[%emt 00:00:02]} Rf2 {[%clk
00:04:04]} {[%emt 00:00:19]} 31. Bd5 {[%clk 00:07:19]} {[%emt 00:00:17]} Rd8
{[%clk 00:04:05]} {[%emt 00:00:05]} 32. Nb3 {[%clk 00:06:32]} {[%emt 00:00:52]}
Rc8 {[%clk 00:03:40]} {[%emt 00:00:29]} 33. c3 {[%clk 00:06:20]} {[%emt
00:00:19]} Rd8 {[%clk 00:03:25]} {[%emt 00:00:16]} 34. Nc5 {[%clk 00:05:58]}
{[%emt 00:00:30]} Rf5 {[%clk 00:02:52]} {[%emt 00:00:37]} 35. Ne6 {[%clk
00:02:46]} {[%emt 00:03:19]} Rdxd5 {[%clk 00:02:50]} {[%emt 00:00:07]} 36. Rxd5
{[%clk 00:02:46]} {[%emt 00:00:05]} Rxd5 {[%clk 00:02:54]} {[%emt 00:00:01]} 37.
Nxg7 {[%clk 00:02:46]} {[%emt 00:00:04]} Rg5 {[%clk 00:02:58]} 38. Ne6 {[%clk
00:02:39]} {[%emt 00:00:14]} Rxg2 {[%clk 00:03:00]} {[%emt 00:00:03]} 39. h3
{[%clk 00:02:33]} {[%emt 00:00:08]} Ka7 {[%clk 00:03:00]} {[%emt 00:00:08]} 40.
Nd4 {[%clk 00:02:28]} {[%emt 00:00:07]} Kb6 {[%clk 00:03:03]} {[%emt 00:00:05]}
41. h4 {[%clk 00:02:24]} {[%emt 00:00:09]} Rh2 {[%clk 00:03:05]} {[%emt
00:00:03]} 42. Nf3 {[%clk 00:02:24]} {[%emt 00:00:04]} Rh3 {[%clk 00:03:08]}
{[%emt 00:00:02]} 43. Ne5 {[%clk 00:02:09]} {[%emt 00:00:21]} Rxh4 {[%clk
00:03:11]} {[%emt 00:00:02]} 44. Ka2 {[%clk 00:01:51]} {[%emt 00:00:23]} h5
{[%clk 00:03:09]} {[%emt 00:00:06]} 45. Ng6 {[%clk 00:01:46]} {[%emt 00:00:08]}
Rh1 {[%clk 00:03:12]} {[%emt 00:00:05]} 46. Kb3 {[%clk 00:01:10]} {[%emt
00:00:41]} h4 {[%clk 00:03:10]} {[%emt 00:00:06]} 47. Nxh4 {[%clk 00:00:51]}
{[%emt 00:00:24]} Rxh4 {[%clk 00:03:13]} {[%emt 00:00:02]} 48. Kc2 {[%clk
00:00:52]} {[%emt 00:00:05]} Rh2+ {[%clk 00:03:15]} {[%emt 00:00:03]} 49. Kb3
{[%clk 00:00:56]} {[%emt 00:00:01]} Kc5 {[%clk 00:03:18]} {[%emt 00:00:02]} 50.
c4 {[%clk 00:00:25]} {[%emt 00:00:35]} bxc4+ {[%clk 00:03:22]} {[%emt
00:00:03]} 51. Kc3 {[%clk 00:00:29]} {[%emt 00:00:01]} Rh3+ {[%clk 00:03:24]}
{[%emt 00:00:02]} 52. Kd2 {[%clk 00:00:32]} {[%emt 00:00:02]} Kd4 {[%clk
00:03:27]} {[%emt 00:00:02]} 53. Kc2 {[%clk 00:00:33]} {[%emt 00:00:03]} Rh2+
{[%clk 00:03:31]} {[%emt 00:00:02]} 54. Kb1 {[%clk 00:00:36]} {[%emt 00:00:02]}
c3 {[%clk 00:03:34]} {[%emt 00:00:02]} 55. bxc3+ {[%clk 00:00:37]} {[%emt
00:00:05]} Kxc3 {[%clk 00:03:37]} {[%emt 00:00:02]} 56. a4 {[%clk 00:00:37]}
{[%emt 00:00:05]} Rb2+ {[%clk 00:03:38]} {[%emt 00:00:04]} 57. Kc1 {[%clk
00:00:39]} {[%emt 00:00:02]} Rh2 {[%clk 00:03:40]} {[%emt 00:00:02]} 58. Kb1
{[%clk 00:00:42]} {[%emt 00:00:02]} b6 {[%clk 00:03:43]} {[%emt 00:00:03]} 59.
a5 {[%clk 00:00:44]} {[%emt 00:00:02]} bxa5 {[%clk 00:03:47]} {[%emt 00:00:02]}
60. Ka1 {[%clk 00:00:48]} {[%emt 00:00:02]} Kb3 {[%clk 00:03:51]} {[%emt
00:00:01]} 61. Kb1 {[%clk 00:00:51]} {[%emt 00:00:01]} Rh1# {[%emt 00:00:01]}
0-1